fUST/lending_fUST_20240830
["ID","MTS","AMOUNT","RATE_DAILY","PERIOD"]
[336675571,1725010242910,-502.69517344,0.0003863,120]
[336675572,1725010242919,-500.0,0.0003863,80]
[336675574,1725010242928,-500.0,0.0003863,120]
[336675576,1725010242937,-3477.01,0.0003863,120]
[336675578,1725010242947,-500.0,0.0003863,120]
[336675580,1725010242956,-500.0,0.0003863,120]
[336675581,1725010242965,-201.82732898,0.0003863,120]
[336675582,1725010242975,-501.86457023,0.0003863,120]
[336675583,1725010242983,-500.0,0.0003863,120]
[336675584,1725010242993,-500.0,0.0003863,120]
[336675586,1725010243002,-151.0,0.0003863,14]
[336675588,1725010243012,-151.0,0.0003863,14]
[336675589,1725010243021,-500.0,0.0003863,120]
[336675590,1725010243030,-500.0,0.0003863,120]
[336675591,1725010243039,-500.0,0.0003863,120]
[336675592,1725010243048,-151.0,0.0003863,14]
[336675593,1725010243057,-151.0,0.0003863,14]
[336675594,1725010243066,-151.0,0.0003863,14]
[336675595,1725010243077,-1958.779177,0.0003863,14]
[336675596,1725010243086,-1958.779177,0.0003863,14]
[336675597,1725010243095,-1958.779177,0.0003863,14]
[336675598,1725010243104,-1958.779177,0.0003863,14]
[336675599,1725010243113,-1958.779177,0.0003863,14]
[336675600,1725010243122,-1958.779177,0.0003863,14]
[336675602,1725010243132,-507.05363032,0.0003863,120]
[336675604,1725010243142,-500.0,0.0003863,120]
[336675606,1725010243151,-500.0,0.0003863,120]
[336675608,1725010243161,-1425.81,0.0003863,120]
[336675609,1725010243170,-626.53211972,0.0003863,120]
[336675611,1725010243179,-500.0,0.0003863,120]
[336675612,1725010243188,-611.43009017,0.0003863,120]
[336675613,1725010243197,-206.763295,0.0003863,14]
[336675614,1725010243206,-500.0,0.0003863,120]
[336675615,1725010243215,-206.763295,0.0003863,14]
[336675616,1725010243224,-206.763295,0.0003863,14]
[336675617,1725010243233,-206.763295,0.0003863,14]
[336675618,1725010243242,-500.0,0.0003863,120]
[336675620,1725010243252,-500.0,0.0003863,120]
[336675622,1725010243262,-500.0,0.0003863,120]
[336675623,1725010243271,-500.0,0.0003863,120]
[336675624,1725010243280,-500.0,0.0003863,120]
[336675625,1725010243289,-2924.5,0.0003863,120]
[336675626,1725010243298,-500.0,0.0003863,120]
[336675627,1725010243307,-502.58725896,0.0003863,120]
[336675629,1725010243316,-500.0,0.0003863,120]
[336675631,1725010243326,-500.0,0.0003863,120]
[336675633,1725010243335,-500.0,0.0003863,120]
[336675635,1725010243345,-502.94565628,0.0003863,120]
[336675636,1725010243356,-682.91,0.0003863,120]
[336675638,1725010243365,-501.94748031,0.0003863,120]
[336675639,1725010243374,-500.0,0.0003863,120]
[336675640,1725010243383,-500.0,0.0003863,120]
[336675641,1725010243392,-9885.12,0.0003863,8]
[336675642,1725010243402,-500.0,0.0003863,120]
[336675643,1725010243412,-500.0,0.0003863,120]
[336675644,1725010243421,-500.0,0.0003863,120]
[336675645,1725010243430,-500.0,0.0003863,120]
[336675646,1725010243440,-500.0,0.0003863,120]
[336675647,1725010243450,-500.0,0.0003863,120]
[336675648,1725010243459,-500.0,0.0003863,30]
[336675649,1725010243468,-921.82,0.0003863,21]
[336675650,1725010243478,-500.0,0.0003863,120]
[336675651,1725010243488,-500.0,0.0003863,120]
[336675652,1725010243498,-500.0,0.0003863,120]
[336675653,1725010243508,-500.0,0.0003863,120]
[336675654,1725010243517,-500.0,0.0003863,120]
[336675655,1725010243526,-1386.93,0.0003863,120]
[336675656,1725010243536,-500.0,0.0003863,120]
[336675657,1725010243546,-500.0,0.0003863,120]
[336675658,1725010243555,-500.0,0.0003863,120]
[336675659,1725010243564,-500.0,0.0003863,120]
[336675660,1725010243574,-151.0,0.0003863,14]
[336675661,1725010243583,-151.0,0.0003863,14]
[336675662,1725010243593,-500.0,0.0003863,120]
[336675663,1725010243603,-500.0,0.0003863,120]
[336675664,1725010243612,-500.0,0.0003863,120]
[336675665,1725010243623,-500.0,0.0003863,120]
[336675666,1725010243633,-500.0,0.0003863,120]
[336675667,1725010243643,-500.0,0.0003863,120]
[336675668,1725010243654,-500.0,0.0003863,120]
[336675669,1725010243663,-500.0,0.0003863,120]
[336675670,1725010243673,-500.0,0.0003863,120]
[336675671,1725010243683,-500.0,0.0003863,120]
[336675673,1725010243692,-159.663192,0.0003863,14]
[336675674,1725010243703,-159.663192,0.0003863,14]
[336675675,1725010243713,-500.0,0.0003863,120]
[336675676,1725010243722,-500.0,0.0003863,120]
[336675677,1725010243732,-500.0,0.0003863,120]
[336675678,1725010243741,-159.663192,0.0003863,14]
[336675679,1725010243751,-159.663192,0.0003863,14]
[336675680,1725010243765,-500.0,0.0003863,120]
[336675681,1725010243775,-1253.09,0.0003863,120]
[336675682,1725010243784,-500.0,0.0003863,120]
[336675683,1725010243794,-500.0,0.0003863,120]
[336675684,1725010243867,-500.0,0.0003863,120]
[336675685,1725010243877,-151.0,0.0003863,14]
[336675686,1725010243886,-500.0,0.0003863,60]
[336675687,1725010243896,-500.0,0.0003863,120]
[336675688,1725010243906,-812.44,0.0003863,120]
[336675689,1725010243916,-243.864212,0.0003863,14]
[336675690,1725010243925,-500.0,0.0003863,120]
[336675691,1725010243935,-500.0,0.0003863,120]
[336675692,1725010243945,-500.0,0.0003863,120]
[336675693,1725010243954,-500.0,0.0003863,120]
[336675694,1725010243964,-500.0,0.0003863,120]
[336675696,1725010243974,-151.0,0.0003863,14]
[336675698,1725010243983,-151.0,0.0003863,14]
[336675700,1725010243993,-151.0,0.0003863,14]
[336675702,1725010244002,-151.0,0.0003863,14]
[336675704,1725010244012,-151.0,0.0003863,14]
[336675706,1725010244021,-1279.86,0.0003863,120]
[336675708,1725010244030,-2671.944837,0.0003863,60]
[336675710,1725010244040,-500.0,0.0003863,120]
[336675712,1725010244049,-500.0,0.0003863,120]
[336675714,1725010244058,-500.0,0.0003863,120]
[336675716,1725010244067,-500.0,0.0003863,120]
[336675717,1725010244077,-500.0,0.0003863,120]
[336675719,1725010244087,-500.0,0.0003863,120]
[336675721,1725010244096,-500.0,0.0003863,120]
[336675723,1725010244106,-152.408043,0.0003863,14]
[336675725,1725010244115,-813.74,0.0003863,120]
[336675726,1725010244123,-2922.09,0.0003863,120]
[336675727,1725010244132,-500.0,0.0003863,120]
[336675728,1725010244141,-530.28314291,0.0003863,120]
[336675729,1725010244151,-500.0,0.0003863,120]
[336675730,1725010244161,-500.0,0.0003863,7]
[336675731,1725010244170,-500.0,0.0003863,120]
[336675732,1725010244180,-500.0,0.0003863,120]
[336675733,1725010244189,-500.0,0.0003863,120]
[336675734,1725010244198,-500.0,0.0003863,120]
[336675735,1725010244208,-500.0,0.0003863,120]
[336675736,1725010244218,-500.0,0.0003863,120]
[336675738,1725010244229,-500.0,0.0003863,120]
[336675740,1725010244240,-1030.81,0.0003863,120]
[336675742,1725010244250,-151.0,0.0003863,14]
[336675743,1725010244260,-151.0,0.0003863,14]
[336675745,1725010244269,-500.0,0.0003863,2]
[336675747,1725010244279,-1758.241425,0.0003863,14]
[336675749,1725010244287,-738.32,0.0003863,120]
[336675751,1725010244297,-1758.241425,0.0003863,14]
[336675753,1725010244306,-1758.241425,0.0003863,14]
[336675754,1725010244315,-500.0,0.0003863,120]
[336675756,1725010244325,-1758.241425,0.0003863,14]
[336675758,1725010244335,-1758.241425,0.0003863,14]
[336675760,1725010244344,-1758.241425,0.0003863,14]
[336675761,1725010244353,-500.0,0.0003863,120]
[336675763,1725010244363,-500.0,0.0003863,120]
[336675765,1725010244373,-500.0,0.0003863,120]
[336675767,1725010244382,-8481.082431,0.0003863,14]
[336675768,1725010244391,-8481.082431,0.0003863,14]
[336675769,1725010244401,-8481.082431,0.0003863,14]
[336675770,1725010244410,-2159.64,0.0003863,120]
[336675771,1725010244419,-500.0,0.0003863,120]
[336675772,1725010244429,-500.0,0.0003863,120]
[336675773,1725010244438,-8481.082431,0.0003863,14]
[336675774,1725010244448,-8481.082431,0.0003863,14]
[336675775,1725010244458,-500.0,0.0003863,120]
[336675776,1725010244467,-8481.082431,0.0003863,14]
[336675777,1725010244477,-151.0,0.0003863,14]
[336675778,1725010244486,-500.0,0.0003863,120]
[336675779,1725010244495,-500.0,0.0003863,120]
[336675780,1725010244505,-500.0,0.0003863,120]
[336675781,1725010244514,-500.0,0.0003863,120]
[336675782,1725010244523,-503.16061577,0.0003863,120]
[336675783,1725010244533,-500.0,0.0003863,120]
[336675784,1725010244542,-500.0,0.0003863,120]
[336675785,1725010244551,-500.0,0.0003863,120]
[336675786,1725010244560,-500.0,0.0003863,120]
[336675787,1725010244569,-500.0,0.0003863,120]
[336675788,1725010244582,-500.0,0.0003863,120]
[336675789,1725010244591,-500.0,0.0003863,120]
[336675790,1725010244601,-500.0,0.0003863,120]
[336675791,1725010244610,-331.38,0.0003863,120]
[336675792,1725010244619,-2600.037268,0.0003863,14]
[336675793,1725010244627,-2600.037268,0.0003863,14]
[336675794,1725010244637,-2600.037268,0.0003863,14]
[336675795,1725010244647,-500.0,0.0003863,120]
[336675796,1725010244656,-500.0,0.0003863,120]
[336675797,1725010244665,-500.0,0.0003863,120]
[336675798,1725010244675,-3736.59,0.0003863,120]
[336675799,1725010244686,-2600.037268,0.0003863,14]
[336675800,1725010244695,-2600.037268,0.0003863,14]
[336675801,1725010244704,-2600.037268,0.0003863,14]
[336675802,1725010244714,-500.0,0.0003863,120]
[336675803,1725010244723,-500.0,0.0003863,120]
[336675804,1725010244732,-500.0,0.0003863,120]
[336675805,1725010244741,-3835.4,0.0003863,120]
[336675806,1725010244750,-500.0,0.0003863,120]
[336675807,1725010244764,-500.0,0.0003863,120]
[336675808,1725010244774,-1248.911614,0.0003863,14]
[336675809,1725010244783,-1248.911614,0.0003863,14]
[336675810,1725010244793,-2566.4542889,0.0003863,120]
[336675811,1725010244925,-151.0,0.0003399,7]
[336675812,1725010244935,-151.0,0.00034999,7]
[336675813,1725010244944,-500.0,0.00038356,120]
[336675814,1725010244954,-696.2957111,0.0003863,120]
[336675815,1725010244964,-151.0,0.0003863,14]
[336675816,1725010244974,-1248.911614,0.0003863,14]
[336675817,1725010244983,-151.0,0.0003863,14]
[336675818,1725010244993,-500.0,0.0003863,120]
[336675819,1725010245003,-500.0,0.0003863,120]
[336675820,1725010245014,-1248.911614,0.0003863,14]
[336675821,1725010245023,-1248.911614,0.0003863,14]
[336675822,1725010245032,-1248.911614,0.0003863,14]
[336675823,1725010245042,-500.0,0.0003863,120]
[336675824,1725010245053,-501.70695037,0.0003863,120]
[336675825,1725010245063,-500.0,0.0003863,120]
[336675826,1725010245073,-500.0,0.0003863,120]
[336675827,1725010245082,-500.0,0.0003863,120]
[336675828,1725010245092,-1995.89,0.0003863,120]
[336675829,1725010245101,-500.0,0.0003863,120]
[336675830,1725010245111,-500.0,0.0003863,120]
[336675831,1725010245120,-500.0,0.0003863,120]
[336675832,1725010245130,-2597.77,0.0003863,120]
[336675833,1725010245140,-500.0,0.0003863,120]
[336675834,1725010245150,-1386.62,0.0003863,120]
[336675835,1725010245159,-151.0,0.0003863,14]
[336675836,1725010245169,-151.0,0.0003863,14]
[336675837,1725010245179,-500.0,0.0003863,120]
[336675838,1725010245188,-151.0,0.0003863,14]
[336675839,1725010245199,-2615.855794,0.0003863,14]
[336675840,1725010245208,-500.0,0.0003863,120]
[336675841,1725010245219,-2615.855794,0.0003863,14]
[336675842,1725010245229,-500.0,0.0003863,120]
[336675843,1725010245307,-500.0,0.0003863,120]
[336675844,1725010245316,-500.0,0.0003863,120]
[336675845,1725010245327,-427.66636379,0.0003863,14]
[336675863,1725010743985,169.029827,0.0001863,2]
[336675864,1725010764187,180.759259,0.00014247,2]
[336675867,1725011291486,169.029827,0.0001863,2]
[336675918,1725011432680,-500.0,0.00026834,2]
[336675919,1725011432689,-101.76891196,0.00026926,2]
[336675921,1725011432701,-498.23108804,0.00026926,2]
[336675923,1725011432710,-500.0,0.00026989,2]
[336675925,1725011432719,-500.0,0.00027213,2]
[336675927,1725011432730,-167.4948628,0.00027397,2]
[336675929,1725011432741,-600.0,0.00027401,2]
[336675931,1725011432752,-600.0,0.00027505,2]
[336675932,1725011432762,-213.32717037,0.00027698,2]
[336676002,1725011438774,-386.67282963,0.00027698,2]
[336676003,1725011438786,-500.0,0.00027701,2]
[336676004,1725011438797,-500.0,0.00028058,2]
[336676005,1725011438807,-289.306989,0.00028067,2]
[336676007,1725011438817,-500.0,0.00028228,2]
[336676009,1725011438826,-300.0,0.0002831,2]
[336676011,1725011438836,-200.0,0.0002831,15]
[336676013,1725011438847,-500.0,0.00028311,2]
[336676015,1725011438858,-3000.0,0.0002837,2]
[336676018,1725011438870,-251.0,0.0002837,2]
[336676020,1725011438880,-500.0,0.0002841,2]
[336676022,1725011438890,-265.4730766,0.00028767,120]
[336676024,1725011438899,-500.0,0.00028981,2]
[336676026,1725011438910,-600.0,0.00029088,2]
[336676028,1725011438920,-600.0,0.00029129,2]
[336676030,1725011438930,-500.0,0.00029755,2]
[336676032,1725011438940,-500.0,0.00029768,2]
[336676035,1725011438951,-600.0,0.00029861,2]
[336676037,1725011438962,-151.0,0.0003,120]
[336676039,1725011438973,-151.0,0.0003,120]
[336676041,1725011438985,-1455.0,0.0003,30]
[336676043,1725011438995,-503.84128596,0.0003,2]
[336676045,1725011439005,-174.0,0.00030045,2]
[336676047,1725011439015,-600.0,0.00030045,7]
[336676050,1725011439029,-600.0,0.00030104,7]
[336676052,1725011439039,-500.0,0.00030154,7]
[336676054,1725011439050,-503.84128596,0.000303,2]
[336676056,1725011439061,-600.0,0.00030377,7]
[336676058,1725011439072,-495.90743166,0.000306,2]
[336676061,1725011439083,-500.0,0.0003087,7]
[336676063,1725011439094,-500.0,0.00030906,7]
[336676065,1725011439104,-468.78656136,0.00030998,7]
[336676067,1725011439116,-31.21343864,0.00030998,7]
[336676068,1725011439125,-500.0,0.00031055,7]
[336676069,1725011439138,-600.0,0.00031148,7]
[336676070,1725011439147,-151.0,0.00031205,120]
[336676071,1725011439157,-500.0,0.00031363,7]
[336676072,1725011439167,-600.0,0.00031467,7]
[336676073,1725011439176,-600.0,0.00031485,7]
[336676074,1725011439290,-500.0,0.00031576,7]
[336676075,1725011439303,-884.79425062,0.00031659,2]
[336676076,1725011439312,-500.0,0.00031681,7]
[336676077,1725011439322,-500.0,0.00031754,7]
[336676078,1725011439332,-500.0,0.00031758,2]
[336676079,1725011439342,-500.0,0.00031758,2]
[336676080,1725011439352,-512.24737138,0.00031758,2]
[336676081,1725011439362,-500.0,0.00031758,2]
[336676082,1725011439372,-500.0,0.00031758,2]
[336676083,1725011439382,-500.0,0.00031758,2]
[336676084,1725011439393,-500.0,0.00031758,2]
[336676085,1725011439405,-500.0,0.00031758,2]
[336676086,1725011439415,-500.0,0.00031758,2]
[336676087,1725011439425,-500.0,0.00031758,2]
[336676088,1725011439436,-500.0,0.00031758,2]
[336676089,1725011439447,-500.0,0.00031758,2]
[336676090,1725011439458,-150.0,0.00031759,14]
[336676091,1725011439468,-150.0,0.00031759,14]
[336676092,1725011439479,-200.0,0.00031759,14]
[336676093,1725011439489,-9549.3015707,0.00031759,36]
[336676114,1725011440751,-45450.6984293,0.00031759,36]
[336676116,1725011440772,-192.943769,0.00031777,2]
[336676118,1725011440796,-500.0,0.00031838,7]
[336676120,1725011440818,-151.0,0.00031945,120]
[336676122,1725011440839,-600.0,0.00032004,7]
[336676124,1725011440862,-600.0,0.00032059,7]
[336676126,1725011440884,-500.0,0.00032091,7]
[336676128,1725011440905,-500.0,0.00032252,7]
[336676130,1725011440926,-500.0,0.00032392,7]
[336676132,1725011440940,-151.0,0.00032411,120]
[336676135,1725011440951,-500.0,0.00032734,7]
[336676137,1725011440961,-1000.0,0.00032876,2]
[336676139,1725011440972,-500.0,0.00032919,7]
[336676141,1725011440983,-171.0,0.00033,2]
[336676143,1725011440993,-174.0,0.00033045,2]
[336676145,1725011441004,-600.0,0.00033116,7]
[336676147,1725011441014,-600.0,0.00033194,7]
[336676149,1725011441024,-500.0,0.00033215,7]
[336676152,1725011441035,-500.0,0.00033293,7]
[336676154,1725011441046,-500.0,0.00033399,7]
[336676156,1725011441056,-1000.0,0.00033424,2]
[336676158,1725011441066,-151.0,0.00033616,120]
[336676160,1725011441075,-600.0,0.00033725,7]
[336676162,1725011441086,-151.0,0.0003389,120]
[336676164,1725011441096,-11930.4,0.00034007,3]
[336676166,1725011441106,-1383.29441631,0.00034057,2]
[336676168,1725011441116,-500.0,0.00034123,7]
[336676171,1725011441127,-897.49822705,0.00034157,5]
[336676173,1725011441140,-500.69515597,0.00034167,7]
[336676175,1725011441151,-600.0,0.00034167,7]
[336676177,1725011441162,-500.0,0.00034181,7]
[336676179,1725011441172,-600.0,0.00034224,7]
[336676181,1725011441182,-500.0,0.00034451,7]
[336676183,1725011441191,-171.0,0.00034521,2]
[336676185,1725011441201,-500.0,0.00034683,7]
[336676187,1725011441210,-151.0,0.00034822,120]
[336676189,1725011441225,-500.0,0.00034896,7]
[336676191,1725011441235,-500.0,0.00035061,7]
[336676193,1725011441245,-500.0,0.00035063,7]
[336676196,1725011441255,-1383.29441629,0.00035104,2]
[336676198,1725011441264,-500.0,0.00035397,7]
[336676200,1725011441273,-522.0,0.00035585,2]
[336676202,1725011441282,-150.0,0.00035585,2]
[336676204,1725011441291,-150.0,0.00035585,2]
[336676206,1725011441300,-217.47617,0.00035616,120]
[336676208,1725011441310,-600.0,0.00035686,7]
[336676210,1725011441320,-151.0,0.00035836,120]
[336676212,1725011441329,-151.0,0.00036027,120]
[336676214,1725011441338,-174.0,0.00036045,2]
[336676216,1725011441349,-500.0,0.00036109,7]
[336676218,1725011441360,-1383.29441629,0.00036152,2]
[336676220,1725011441371,-5029.40942929,0.00036505,2]
[336676222,1725011441381,-500.0,0.00036662,7]
[336676223,1725011441393,-600.0,0.00036679,7]
[336676224,1725011441404,-500.0,0.00036775,7]
[336676225,1725011441414,-600.0,0.00036926,7]
[336676226,1725011441424,-600.0,0.00036928,7]
[336676227,1725011441433,-5029.40942929,0.00036976,2]
[336676228,1725011441444,-88261.6766455,0.0003699,4]
[336676229,1725011441456,-42075.03,0.00037,30]
[336676230,1725011441466,-5029.40942929,0.00037108,2]
[336676231,1725011441479,-153.0,0.00037113,2]
[336676232,1725011441489,-153.0,0.00037113,2]
[336676233,1725011441499,-153.0,0.00037113,2]
[336676234,1725011441509,-153.0,0.00037113,2]
[336676235,1725011441521,-153.0,0.00037113,2]
[336676236,1725011441532,-153.0,0.00037113,2]
[336676237,1725011441542,-153.0,0.00037113,2]
[336676238,1725011441552,-1383.29441629,0.00037199,2]
[336676239,1725011441562,-500.0,0.00037204,7]
[336676240,1725011441573,-151.0,0.00037233,120]
[336676241,1725011441585,-289.3558861,0.0003725,2]
[336676242,1725011441594,-153.0,0.0003725,2]
[336676243,1725011441603,-153.0,0.0003725,2]
[336676244,1725011441612,-405.3451976,0.0003725,2]
[336676245,1725011441621,-415.5434711,0.0003725,2]
[336676246,1725011441630,-409.5167953,0.0003725,2]
[336676247,1725011441640,-306.0,0.0003725,2]
[336676248,1725011441649,-153.0,0.0003725,2]
[336676249,1725011441659,-600.0,0.00037302,7]
[336676250,1725011441668,-5029.40942929,0.00037357,2]
[336676251,1725011441677,-600.0,0.00037454,7]
[336676252,1725011441687,-500.0,0.00037554,7]
[336676253,1725011441697,-5029.40942929,0.00037556,2]
[336676254,1725011441706,-150.0,0.00037599,2]
[336676255,1725011441716,-500.0,0.00037714,7]
[336676256,1725011441726,-151.0,0.00037781,120]
[336676257,1725011441735,-5029.40942929,0.00037835,2]
[336676258,1725011441744,-150.0,0.00037893,2]
[336676259,1725011441754,-10000.0,0.00038,9]
[336676260,1725011441763,-150.112233,0.00038,5]
[336676261,1725011441772,-88261.6766455,0.00038041,4]
[336676262,1725011441782,-3206.618,0.00038051,7]
[336676263,1725011441793,-424.885,0.00038051,7]
[336676264,1725011441802,-409.5167953,0.00038072,120]
[336676265,1725011441813,-409.5167953,0.00038072,120]
[336676266,1725011441824,-409.5167953,0.00038072,120]
[336676267,1725011441836,-408.5558034,0.00038072,120]
[336676268,1725011441846,-409.5167953,0.00038072,120]
[336676269,1725011441857,-153.0,0.00038072,2]
[336676270,1725011441867,-153.0,0.00038072,2]
[336676271,1725011441880,-153.0,0.00038072,2]
[336676272,1725011441891,-153.0,0.00038072,2]
[336676273,1725011441902,-409.5167953,0.00038072,2]
[336676274,1725011441912,-150.112233,0.000381,9]
[336676275,1725011441922,-500.0,0.00038105,7]
[336676276,1725011441932,-150.112233,0.000382,6]
[336676277,1725011441942,-5029.40942929,0.00038233,2]
[336676278,1725011441952,-1383.29441629,0.00038246,2]
[336676279,1725011441961,-1853.92986516,0.00038246,2]
[336676280,1725011441971,-151.0,0.00038252,7]
[336676281,1725011441981,-236.802332,0.00038252,7]
[336676282,1725011441990,-151.0,0.00038252,7]
[336676283,1725011441999,-151.0,0.00038252,7]
[336676284,1725011442009,-151.0,0.00038252,7]
[336676285,1725011442019,-151.0,0.00038252,7]
[336676286,1725011442028,-151.0,0.00038252,7]
[336676287,1725011442038,-151.0,0.00038252,7]
[336676288,1725011442048,-151.0,0.00038252,7]
[336676289,1725011442058,-210.180455,0.00038252,7]
[336676290,1725011442070,-210.180455,0.00038252,7]
[336676291,1725011442079,-151.0,0.00038252,7]
[336676292,1725011442089,-2723.66712046,0.00038256,2]
[336676293,1725011442098,-500.0,0.00038293,7]
[336676294,1725011442107,-150.112233,0.000383,10]
[336676295,1725011442116,-150.0,0.00038335,2]
[336676296,1725011442125,-160.0,0.00038345,10]
[336676297,1725011442136,-2181.55429761,0.00038346,4]
[336676298,1725011442150,-26890.30706926,0.00038346,4]
[336676299,1725011442161,-70157.28136511,0.00038346,4]
[336676663,1725011446705,-150.0,0.00035585,2]
[336676665,1725011446715,-153.0,0.00037113,2]
[336676667,1725011446724,-409.5167953,0.0003725,2]
[336676668,1725011446733,-1843.68630157,0.00038336,3]
[336676934,1725011840871,169.029827,0.0001863,2]
[336676935,1725011899444,180.759259,0.00014247,2]
[336676937,1725011976072,453.50239903,0.0002189,4]
[336676943,1725012397697,169.029827,0.0001863,2]
[336676971,1725012631836,-500.0,0.00027879,2]
[336676973,1725012631847,-500.0,0.0003144,7]
[336676975,1725012631856,-150.0,0.00031773,14]
[336676977,1725012631865,-150.0,0.00031773,14]
[336676978,1725012631875,-200.0,0.00031773,14]
[336676980,1725012631886,-205.72703006,0.00031773,7]
[336676982,1725012631896,-3032.00736483,0.000318,120]
[336676984,1725012631905,-335.4898469,0.0003188,2]
[336676985,1725012631914,-573.32171192,0.00032411,7]
[336676986,1725012631923,-3000.0,0.00032998,2]
[336676987,1725012631933,-258.0,0.00033,2]
[336676988,1725012631942,-500.0,0.0003322,7]
[336676989,1725012631951,-288.013589,0.00033319,2]
[336676990,1725012631960,-192.943769,0.00033439,2]
[336676991,1725012631969,-918.71497512,0.00034821,7]
[336676992,1725012631978,-500.0,0.00035,2]
[336676993,1725012631988,-150.0,0.00035585,2]
[336676994,1725012631998,-522.0,0.00035585,2]
[336676995,1725012632008,-150.0,0.00035585,2]
[336676996,1725012632017,-163.107127,0.00035616,120]
[336676997,1725012632028,-500.0,0.00037502,7]
[336676998,1725012632037,-5247.44955826,0.000377,2]
[336676999,1725012632047,-1000.0,0.00038,7]
[336677000,1725012632056,-2013.4,0.00038,8]
[336677001,1725012632066,-5247.44955826,0.00038027,2]
[336677002,1725012632076,-5232.38252831,0.000382,7]
[336677003,1725012632085,-774.19496931,0.00038226,2]
[336677004,1725012632095,-2000.0,0.00038246,2]
[336677005,1725012632104,-1668.53687868,0.00038256,2]
[336677006,1725012632114,-10227.7376665,0.00038333,2]
[336677032,1725012638100,-500.0,0.00038325,15]
[336677035,1725012638112,-168.02748571,0.00038325,15]
[336677037,1725012638123,-34702.3140185,0.00038333,2]
[336677039,1725012638133,-4261.2329954,0.00038336,3]
[336677042,1725012638147,-913.79145382,0.00038336,3]
[336677058,1725012638292,-2562.39723476,0.00038336,3]
[336677209,1725012640083,-14198.94831602,0.00038336,3]
[336677211,1725012640095,-157.21268045,0.00038345,15]
[336677213,1725012640106,-574.06291958,0.00038345,15]
[336677216,1725012640118,-500.0,0.00038345,15]
[336677218,1725012640127,-500.0,0.00038345,15]
[336677220,1725012640136,-500.0,0.00038345,15]
[336677222,1725012640147,-500.0,0.00038345,15]
[336677224,1725012640156,-500.0,0.00038345,15]
[336677226,1725012640166,-500.0,0.00038345,15]
[336677228,1725012640177,-500.0,0.00038345,15]
[336677230,1725012640188,-500.0,0.00038345,15]
[336677232,1725012640198,-500.0,0.00038345,15]
[336677234,1725012640208,-512.41575999,0.00038345,15]
[336677236,1725012640219,-450.0,0.00038345,15]
[336677239,1725012640229,-1435.83078771,0.00038345,5]
[336677243,1725012640241,-448.74911353,0.00038345,5]
[336677245,1725012640250,-857.84326115,0.00038345,5]
[336677247,1725012640260,-3755.24423083,0.00038346,4]
[336677249,1725012640274,-12527.75500432,0.00038346,4]
[336677448,1725012642152,180.759259,0.00014247,2]
[336677545,1725012643048,-7004.43800595,0.00038346,4]
[336677827,1725012645930,-552.96673112,0.00038346,4]
[336683042,1725012924487,169.029827,0.0001863,2]
[336683044,1725013052651,309.0,0.00025,120]
[336683045,1725013158271,187.5,0.00014247,2]
[336683048,1725013527938,169.029827,0.0001863,2]
[336683060,1725013686909,180.759259,0.00014247,2]
[336683066,1725013717052,1308.38734274,0.00025,120]